[Event "DLM Youth 2024"]
[Site "Tuebingen"]
[Date "2024.10.03"]
[Round "1"]
[White "Pubantz, Jan"]
[Black "Chassard, Cedric"]
[Result "1/2-1/2"]
[ECO "D02"]
[WhiteElo "2318"]
[BlackElo "2289"]
[Annotator "RC"]
[PlyCount "109"]
[EventDate "2024.10.03"]
[EventType "team-swiss"]
[EventRounds "7"]
[EventCountry "GER"]
[SourceTitle "playchess.com"]
[Source "ChessBase"]
[SourceQuality "1"]
[TimeControl "40/5400+30:1800+30"]

1. d4 {[%emt 0:00:03]} Nf6 {[%emt 0:00:07]} 2. c4 {[%emt 0:00:04]} e6 {[%emt 0:00:07]} 3. g3 {[%emt 0:00:08]} d5 {[%emt 0:00:07]} 4. Nf3 {[%emt 0:00:05]} Bd6 {[%emt 0:00:51]} 5. Bg2 {[%emt 0:01:44]} O-O {[%emt 0:00:27]} 6. O-O {[%emt 0:00:36]} Nc6 {[%emt 0:05:08]} 7. b3 {[%emt 0:00:22]} dxc4 {[%emt 0:01:25]} 8. bxc4 {[%emt 0:00:09]} e5 {[%emt 0:00:03]} 9. c5 {[%emt 0:00:50]} Be7 {[%emt 0:00:05]} 10. dxe5 {[%emt 0:00:58]} Qxd1 {[%emt 0:00:07]} 11. Rxd1 {[%emt 0:00:09]} Ne4 {[%emt 0:00:10]} 12. Ba3 {[%emt 0:03:28]} Bxc5 {[%emt 0:00:05]} 13. Bxc5 {[%emt 0:05:10]} Nxc5 {[%emt 0:00:05]} 14. Nbd2 {[%emt 0:19:25]} Be6 {[%emt 0:19:34]} 15. Ng5 {[%emt 0:24:16]} Bg4 {[%emt 0:22:16]} 16. Bxc6 {[%emt 0:07:07]} bxc6 {[%emt 0:00:05]} 17. f3 {[%emt 0:00:21]} Bf5 {[%emt 0:04:09]} 18. g4 {[%emt 0:07:37]} h6 {[%emt 0:20:35]} 19. Rac1 {[%emt 0:08:02]} Nd7 {[%emt 0:06:59]} 20. gxf5 {[%emt 0:01:19]} hxg5 {[%emt 0:00:04]} 21. Nc4 {[%emt 0:00:22]} Rad8 {[%emt 0:01:43]} 22. Kf2 {[%emt 0:06:08]} Rfe8 {[%emt 0:02:50]} 23. Rd3 {[%emt 0:00:56]} Nb6 {[%emt 0:04:48]} 24. Rxd8 {[%emt 0:01:17]} Rxd8 {[%emt 0:00:02]} 25. Na5 {[%emt 0:02:19]} Re8 {[%emt 0:04:57]} 26. Nxc6 {[%emt 0:01:50]} Nd7 {[%emt 0:00:51]} 27. e6 {[%emt 0:04:43]} fxe6 {[%emt 0:00:37]} 28. fxe6 {[%emt 0:00:22]} Rxe6 {[%emt 0:00:23]} 29. Nd4 {[%emt 0:01:39]} Ra6 {[%emt 0:01:41]} 30. Rxc7 {[%emt 0:00:18]} Nf6 {[%emt 0:00:15]} 31. Nf5 {[%emt 0:01:28]} Nh5 {[%emt 0:00:13]} 32. Rc2 {[%emt 0:01:15]} Nf4 {[%emt 0:00:49]} 33. Rd2 {[%emt 0:01:08]} Re6 {[%emt 0:02:07]} 34. e3 {[%emt 0:01:05]} Nh5 {[%emt 0:00:28]} 35. Nd6 {[%emt 0:00:33]} Nf6 {[%emt 0:01:49]} 36. h3 {[%emt 0:00:09]} Re5 {[%emt 0:00:21]} 37. Nc4 {[%emt 0:00:53]} Rc5 {[%emt 0:00:34]} 38. Rd4 {[%emt 0:00:03]} Rb5 {[%emt 0:00:33]} 39. Rd8+ {[%emt 0:00:58]} Kh7 {[%emt 0:00:10]} 40. Rd2 {[%emt 0:00:30]} Rb1 {[%emt 0:02:09]} 41. Ne5 {[%emt 0:23:48]} Rh1 {[%emt 0:01:39]} 42. Kg2 {[%emt 0:00:27]} Re1 {[%emt 0:00:32]} 43. Kf2 {[%emt 0:03:20]} Rh1 {[%emt 0:00:23]} 44. Ng4 {[%emt 0:00:26]} Rxh3 {[%emt 0:05:06]} 45. Kg2 {[%emt 0:02:46]} Rh4 {[%emt 0:00:31]} 46. Nxf6+ {[%emt 0:00:13]} gxf6 {[%emt 0:00:01]} 47. Rd7+ {[%emt 0:00:01]} Kg6 {[%emt 0:00:09]} 48. Rxa7 {[%emt 0:00:04]} Rb4 {[%emt 0:00:08]} 49. Kg3 {[%emt 0:01:07]} Rb2 {[%emt 0:00:37]} 50. e4 {[%emt 0:00:47]} Rc2 {[%emt 0:06:08]} 51. a4 {[%emt 0:00:38]} Ra2 {[%emt 0:00:53]} 52. a5 {[%emt 0:00:24]} Rb2 {[%emt 0:00:39]} 53. Ra8 {[%emt 0:00:24]} Ra2 {[%emt 0:02:41]} 54. a6 {[%emt 0:01:27]} Kg7 {[%emt 0:01:07]} 55. Kg4 {[%emt 0:00:17]} 1/2-1/2

[Event "DLM Youth 2024"]
[Site "Tuebingen"]
[Date "2024.10.03"]
[Round "1"]
[White "Farokhi, Keyvan"]
[Black "Fuhrmann, Bahne"]
[Result "1/2-1/2"]
[ECO "E60"]
[WhiteElo "2306"]
[BlackElo "2146"]
[Annotator "RC"]
[PlyCount "86"]
[EventDate "2024.10.03"]
[EventType "team-swiss"]
[EventRounds "7"]
[EventCountry "GER"]
[SourceTitle "playchess.com"]
[Source "ChessBase"]
[SourceQuality "1"]
[TimeControl "40/5400+30:1800+30"]

1. d4 {[%emt 0:00:07]} Nf6 {[%emt 0:00:04]} 2. c4 {[%emt 0:00:09]} g6 {[%emt 0:00:05]} 3. h4 {[%emt 0:00:06]} d5 {[%emt 0:03:49]} 4. cxd5 {[%emt 0:01:00]} c5 {[%emt 0:00:04]} 5. dxc5 {[%emt 0:23:34]} Qxd5 {[%emt 0:04:32]} 6. Qxd5 {[%emt 0:03:30]} Nxd5 {[%emt 0:00:05]} 7. a3 {[%emt 0:08:17]} Na6 {[%emt 0:08:09]} 8. c6 {[%emt 0:04:12]} Nc5 {[%emt 0:10:26]} 9. Nd2 {[%emt 0:09:45]} bxc6 {[%emt 0:05:13]} 10. b4 {[%emt 0:12:14]} Na4 {[%emt 0:07:58]} 11. e4 {[%emt 0:00:35]} Ndb6 {[%emt 0:04:37]} 12. Ra2 {[%emt 0:04:09]} Bg7 {[%emt 0:01:54]} 13. Rc2 {[%emt 0:00:32]} O-O {[%emt 0:01:56]} 14. Ngf3 {[%emt 0:01:14]} Bg4 {[%emt 0:03:11]} 15. Ba6 {[%emt 0:01:38]} Bc8 {[%emt 0:07:22]} 16. Bxc8 {[%emt 0:02:54]} Raxc8 {[%emt 0:02:49]} 17. Nb3 {[%emt 0:01:29]} Rfd8 {[%emt 0:06:41]} 18. Rh3 {[%emt 0:00:38]} Rd3 {[%emt 0:01:51]} 19. Ng1 {[%emt 0:01:15]} Rcd8 {[%emt 0:04:43]} 20. Rxd3 {[%emt 0:00:31]} Rxd3 {[%emt 0:00:53]} 21. Na5 {[%emt 0:08:40]} Nc3 {[%emt 0:08:30]} 22. Rd2 {[%emt 0:00:21]} Rxd2 {[%emt 0:00:05]} 23. Bxd2 {[%emt 0:00:03]} Nxe4 {[%emt 0:01:02]} 24. Nxc6 {[%emt 0:00:08]} Nxd2 {[%emt 0:05:13]} 25. Kxd2 {[%emt 0:00:10]} Nc4+ {[%emt 0:00:04]} 26. Kd3 {[%emt 0:01:20]} Nxa3 {[%emt 0:00:58]} 27. Nxa7 {[%emt 0:00:25]} Kf8 {[%emt 0:00:04]} 28. b5 {[%emt 0:02:56]} Ke8 {[%emt 0:03:14]} 29. b6 {[%emt 0:00:52]} Kd7 {[%emt 0:00:29]} 30. Nf3 {[%emt 0:00:23]} e5 {[%emt 0:00:21]} 31. Ng5 {[%emt 0:04:05]} f5 {[%emt 0:02:21]} 32. f3 {[%emt 0:01:18]} h6 {[%emt 0:06:30]} 33. Nf7 {[%emt 0:01:04]} e4+ {[%emt 0:00:04]} 34. fxe4 {[%emt 0:00:04]} fxe4+ {[%emt 0:00:30]} 35. Kxe4 {[%emt 0:00:06]} Nc4 {[%emt 0:00:20]} 36. b7 {[%emt 0:01:29]} Kc7 {[%emt 0:00:13]} 37. Nc6 {[%emt 0:01:15]} Kxb7 {[%emt 0:00:24]} 38. Ne7 {[%emt 0:00:09]} Kc7 {[%emt 0:01:09]} 39. Nxg6 {[%emt 0:00:40]} Kd7 {[%emt 0:00:13]} 40. g4 {[%emt 0:03:56]} Ke6 {[%emt 0:01:10]} 41. Nd8+ {[%emt 0:30:11]} Kf6 {[%emt 0:03:12]} 42. Nf4 {[%emt 0:00:00]} Ke7 {[%emt 0:04:16]} 43. Nc6+ {[%emt 0:00:00]} Kf7 {[%emt 0:00:38]} 1/2-1/2

[Event "DLM Youth 2024"]
[Site "Tuebingen"]
[Date "2024.10.03"]
[Round "1"]
[White "Haack, Kevin"]
[Black "Haubold, Sebastian"]
[Result "1/2-1/2"]
[ECO "E63"]
[WhiteElo "2305"]
[BlackElo "2030"]
[Annotator "RC"]
[PlyCount "94"]
[EventDate "2024.10.03"]
[EventType "team-swiss"]
[EventRounds "7"]
[EventCountry "GER"]
[SourceTitle "playchess.com"]
[Source "ChessBase"]
[SourceQuality "1"]
[TimeControl "40/5400+30:1800+30"]

1. d4 {[%emt 0:00:04]} Nf6 {[%emt 0:00:31]} 2. c4 {[%emt 0:00:07]} g6 {[%emt 0:00:22]} 3. g3 {[%emt 0:00:21]} Bg7 {[%emt 0:00:17]} 4. Bg2 {[%emt 0:00:05]} O-O {[%emt 0:00:13]} 5. Nc3 {[%emt 0:00:04]} d6 {[%emt 0:00:03]} 6. Nf3 {[%emt 0:00:12]} Nc6 {[%emt 0:02:00]} 7. O-O {[%emt 0:00:07]} a6 {[%emt 0:00:02]} 8. b3 {[%emt 0:00:09]} Rb8 {[%emt 0:02:23]} 9. d5 {[%emt 0:03:20]} Na5 {[%emt 0:05:52]} 10. Bg5 {[%emt 0:00:05]} c5 {[%emt 0:06:19]} 11. dxc6 {[%emt 0:00:19]} Nxc6 {[%emt 0:02:05]} 12. Rc1 {[%emt 0:00:06]} Bd7 {[%emt 0:06:16]} 13. Nd5 {[%emt 0:22:15]} Nxd5 {[%emt 0:16:20]} 14. cxd5 {[%emt 0:00:13]} Ne5 {[%emt 0:00:04]} 15. Qd2 {[%emt 0:07:53]} Nxf3+ {[%emt 0:04:49]} 16. Bxf3 {[%emt 0:00:07]} Bh3 {[%emt 0:00:15]} 17. Rfd1 {[%emt 0:02:18]} Qd7 {[%emt 0:00:09]} 18. Rc4 {[%emt 0:03:03]} Rbc8 {[%emt 0:14:36]} 19. Rh4 {[%emt 0:02:14]} f6 {[%emt 0:05:13]} 20. Bh6 {[%emt 0:16:15]} g5 {[%emt 0:01:47]} 21. Bxg7 {[%emt 0:00:06]} Kxg7 {[%emt 0:00:02]} 22. Rb4 {[%emt 0:05:19]} Rc5 {[%emt 0:06:00]} 23. Bg2 {[%emt 0:00:46]} Bxg2 {[%emt 0:00:28]} 24. Kxg2 {[%emt 0:00:05]} Rfc8 {[%emt 0:00:20]} 25. h4 {[%emt 0:02:35]} h6 {[%emt 0:06:57]} 26. Re4 {[%emt 0:01:28]} R8c7 {[%emt 0:04:07]} 27. Re6 {[%emt 0:07:14]} Qe8 {[%emt 0:10:15]} 28. hxg5 {[%emt 0:02:44]} hxg5 {[%emt 0:00:18]} 29. Qe3 {[%emt 0:00:27]} Kf8 {[%emt 0:03:51]} 30. Qe4 {[%emt 0:01:22]} Rc1 {[%emt 0:00:53]} 31. Rxc1 {[%emt 0:02:52]} Rxc1 {[%emt 0:00:02]} 32. Qh7 {[%emt 0:00:14]} Rc7 {[%emt 0:00:52]} 33. Qh6+ {[%emt 0:05:59]} Kf7 {[%emt 0:00:57]} 34. Qh7+ {[%emt 0:04:39]} Kf8 {[%emt 0:00:02]} 35. g4 {[%emt 0:03:45]} Qf7 {[%emt 0:00:25]} 36. Qf5 {[%emt 0:01:01]} Kg7 {[%emt 0:00:25]} 37. Qe4 {[%emt 0:02:21]} Kh8 {[%emt 0:01:38]} 38. Qe3 {[%emt 0:01:40]} Kg7 {[%emt 0:01:01]} 39. a4 {[%emt 0:00:27]} Kf8 {[%emt 0:00:43]} 40. Qb6 {[%emt 0:02:05]} Rd7 {[%emt 0:00:09]} 41. Qd4 {[%emt 0:31:57]} Rc7 {[%emt 0:02:59]} 42. b4 {[%emt 0:00:00]} Qh7 {[%emt 0:03:00]} 43. Qa7 {[%emt 0:00:00]} Qh4 {[%emt 0:12:52]} 44. Qb8+ {[%emt 0:00:00]} Kf7 {[%emt 0:00:08]} 45. Rxf6+ {[%emt 0:01:17]} Kxf6 {[%emt 0:00:19]} 46. Qf8+ {[%emt 0:00:14]} Kg6 {[%emt 0:00:54]} 47. Qg8+ {[%emt 0:00:08]} Kf6 {[%emt 0:00:13]} 1/2-1/2

[Event "DLM Youth 2024"]
[Site "Tuebingen"]
[Date "2024.10.03"]
[Round "1"]
[White "Gallasch, Jonas"]
[Black "Weber, Nikita"]
[Result "1-0"]
[ECO "D11"]
[WhiteElo "2291"]
[BlackElo "2130"]
[Annotator "RC"]
[PlyCount "63"]
[EventDate "2024.10.03"]
[EventType "team-swiss"]
[EventRounds "7"]
[EventCountry "GER"]
[SourceTitle "playchess.com"]
[Source "ChessBase"]
[SourceQuality "1"]
[TimeControl "40/5400+30:1800+30"]

1. d4 {[%emt 0:00:03]} d5 {[%emt 0:00:04]} 2. c4 {[%emt 0:00:04]} c6 {[%emt 0:00:02]} 3. Nf3 {[%emt 0:00:23]} Nf6 {[%emt 0:00:07]} 4. e3 {[%emt 0:00:23]} a6 {[%emt 0:02:03]} 5. Bd3 {[%emt 0:07:08]} g6 {[%emt 0:06:53]} 6. b3 {[%emt 0:00:28]} Bg4 {[%emt 0:02:57]} 7. Nbd2 {[%emt 0:01:24]} Qa5 {[%emt 0:14:38]} 8. Qc2 {[%emt 0:06:40]} Bxf3 {[%emt 0:11:05]} 9. gxf3 {[%emt 0:00:35]} Nbd7 {[%emt 0:00:51]} 10. Bb2 {[%emt 0:02:04]} Bh6 {[%emt 0:06:21]} 11. c5 {[%emt 0:04:30]} Nh5 {[%emt 0:06:26]} 12. f4 {[%emt 0:11:48]} e6 {[%emt 0:05:55]} 13. b4 {[%emt 0:01:17]} Qc7 {[%emt 0:05:05]} 14. Nf3 {[%emt 0:00:28]} f5 {[%emt 0:03:04]} 15. h4 {[%emt 0:10:12]} Bf8 {[%emt 0:10:38]} 16. a4 {[%emt 0:06:07]} Ndf6 {[%emt 0:03:05]} 17. Ke2 {[%emt 0:02:40]} Be7 {[%emt 0:01:32]} 18. b5 {[%emt 0:03:50]} axb5 {[%emt 0:03:24]} 19. axb5 {[%emt 0:00:08]} Rxa1 {[%emt 0:00:58]} 20. Rxa1 {[%emt 0:00:06]} O-O {[%emt 0:00:56]} 21. Ra7 {[%emt 0:06:26]} Qb8 {[%emt 0:07:53]} 22. b6 {[%emt 0:04:43]} Re8 {[%emt 0:00:57]} 23. Ne5 {[%emt 0:01:59]} Ne4 {[%emt 0:01:13]} 24. Ba6 {[%emt 0:02:06]} bxa6 {[%emt 0:00:31]} 25. Nxc6 {[%emt 0:00:14]} Nxf4+ {[%emt 0:00:15]} 26. Kf3 {[%emt 0:01:02]} Nd3 {[%emt 0:03:54]} 27. Nxb8 {[%emt 0:03:35]} Ne1+ {[%emt 0:00:02]} 28. Ke2 {[%emt 0:00:07]} Nxc2 {[%emt 0:00:02]} 29. Nxa6 {[%emt 0:00:07]} Bd6 {[%emt 0:03:09]} 30. cxd6 {[%emt 0:01:25]} Nxd6 {[%emt 0:00:02]} 31. b7 {[%emt 0:00:06]} Rf8 {[%emt 0:00:27]} 32. b8=Q {[%emt 0:00:09]} 1-0

[Event "DLM Youth 2024"]
[Site "Tuebingen"]
[Date "2024.10.03"]
[Round "1"]
[White "Hinrichs, Paul"]
[Black "Besou, Hussain"]
[Result "1-0"]
[ECO "E51"]
[WhiteElo "2264"]
[BlackElo "2345"]
[Annotator "RC"]
[PlyCount "93"]
[EventDate "2024.10.03"]
[EventType "team-swiss"]
[EventRounds "7"]
[EventCountry "GER"]
[SourceTitle "playchess.com"]
[Source "ChessBase"]
[SourceQuality "1"]
[TimeControl "40/5400+30:1800+30"]

1. d4 {[%emt 0:00:04]} Nf6 {[%emt 0:00:11]} 2. c4 {[%emt 0:00:15]} e6 {[%emt 0:00:08]} 3. Nc3 {[%emt 0:00:05]} Bb4 {[%emt 0:00:10]} 4. e3 {[%emt 0:00:06]} O-O {[%emt 0:00:20]} 5. Bd3 {[%emt 0:00:52]} d5 {[%emt 0:00:17]} 6. Nf3 {[%emt 0:00:07]} b6 {[%emt 0:02:28]} 7. a3 {[%emt 0:09:26]} Be7 {[%emt 0:00:36]} 8. O-O {[%emt 0:04:50]} Bb7 {[%emt 0:01:43]} 9. cxd5 {[%emt 0:01:29]} exd5 {[%emt 0:00:27]} 10. Qc2 {[%emt 0:05:44]} c5 {[%emt 0:05:52]} 11. dxc5 {[%emt 0:06:51]} bxc5 {[%emt 0:00:36]} 12. Rd1 {[%emt 0:02:05]} Qb6 {[%emt 0:14:43]} 13. e4 {[%emt 0:27:08]} c4 {[%emt 0:05:03]} 14. Bf1 {[%emt 0:00:52]} dxe4 {[%emt 0:00:27]} 15. Ne5 {[%emt 0:00:46]} Qe6 {[%emt 0:10:22]} 16. Nxc4 {[%emt 0:01:52]} Nbd7 {[%emt 0:02:14]} 17. Na5 {[%emt 0:02:37]} Ba6 {[%emt 0:08:33]} 18. Nxe4 {[%emt 0:05:27]} Nxe4 {[%emt 0:07:27]} 19. Bxa6 {[%emt 0:01:17]} Nxf2 {[%emt 0:04:29]} 20. Rxd7 {[%emt 0:12:22]} Qb6 {[%emt 0:07:35]} 21. Be3 {[%emt 0:05:04]} Nh3+ {[%emt 0:03:09]} 22. gxh3 {[%emt 0:01:13]} Qxe3+ {[%emt 0:00:05]} 23. Kh1 {[%emt 0:00:05]} Bh4 {[%emt 0:08:04]} 24. Rf1 {[%emt 0:06:34]} Qb6 {[%emt 0:06:50]} 25. Qc4 {[%emt 0:00:40]} Bf6 {[%emt 0:00:08]} 26. b4 {[%emt 0:00:40]} Rae8 {[%emt 0:00:43]} 27. Bb7 {[%emt 0:00:26]} Qe3 {[%emt 0:01:39]} 28. Bd5 {[%emt 0:01:18]} Kh8 {[%emt 0:00:23]} 29. Rxf7 {[%emt 0:01:54]} Rxf7 {[%emt 0:01:28]} 30. Bxf7 {[%emt 0:00:02]} Rd8 {[%emt 0:00:14]} 31. Qb3 {[%emt 0:02:29]} Qd2 {[%emt 0:01:59]} 32. Qf3 {[%emt 0:01:08]} Be5 {[%emt 0:03:38]} 33. Qg2 {[%emt 0:00:28]} Qh6 {[%emt 0:00:19]} 34. Bd5 {[%emt 0:00:37]} Rc8 {[%emt 0:01:24]} 35. Nc6 {[%emt 0:00:07]} Bf6 {[%emt 0:00:05]} 36. Qf3 {[%emt 0:00:48]} Re8 {[%emt 0:00:09]} 37. Nxa7 {[%emt 0:00:21]} Qd2 {[%emt 0:00:36]} 38. Nc6 {[%emt 0:00:42]} Re2 {[%emt 0:00:27]} 39. Kg1 {[%emt 0:00:33]} Rxh2 {[%emt 0:02:43]} 40. Rd1 {[%emt 0:00:30]} Rg2+ {[%emt 0:01:55]} 41. Kf1 {[%emt 0:30:11]} Rf2+ {[%emt 0:30:43]} 42. Qxf2 {[%emt 0:00:03]} Qxd1+ {[%emt 0:00:06]} 43. Qe1 {[%emt 0:00:02]} Qd3+ {[%emt 0:00:29]} 44. Qe2 {[%emt 0:00:17]} Qb1+ {[%emt 0:00:59]} 45. Kg2 {[%emt 0:00:58]} Qg6+ {[%emt 0:00:05]} 46. Kh1 {[%emt 0:00:43]} Bh4 {[%emt 0:00:27]} 47. Ne5 {[%emt 0:00:00]} 1-0

[Event "DLM Youth 2024"]
[Site "Tuebingen"]
[Date "2024.10.03"]
[Round "1"]
[White "Weihrauch, Jakob"]
[Black "Ermitsch, Magnus"]
[Result "1/2-1/2"]
[ECO "B48"]
[WhiteElo "2264"]
[BlackElo "2396"]
[Annotator "RC"]
[PlyCount "94"]
[EventDate "2024.10.03"]
[EventType "team-swiss"]
[EventRounds "7"]
[EventCountry "GER"]
[SourceTitle "playchess.com"]
[Source "ChessBase"]
[SourceQuality "1"]
[TimeControl "40/5400+30:1800+30"]

1. e4 {[%emt 0:00:02]} c5 {[%emt 0:01:05]} 2. Nf3 {[%emt 0:00:08]} e6 {[%emt 0:00:06]} 3. d4 {[%emt 0:00:22]} cxd4 {[%emt 0:00:08]} 4. Nxd4 {[%emt 0:00:04]} Nc6 {[%emt 0:00:08]} 5. Nc3 {[%emt 0:00:17]} Qc7 {[%emt 0:00:07]} 6. Be3 {[%emt 0:00:31]} a6 {[%emt 0:00:21]} 7. g4 {[%emt 0:00:17]} b5 {[%emt 0:00:09]} 8. Nxc6 {[%emt 0:00:09]} Qxc6 {[%emt 0:00:05]} 9. Qd2 {[%emt 0:00:04]} Bb7 {[%emt 0:00:07]} 10. f3 {[%emt 0:04:34]} Ne7 {[%emt 0:26:10]} 11. O-O-O {[%emt 0:05:25]} d5 {[%emt 0:03:53]} 12. exd5 {[%emt 0:09:59]} Nxd5 {[%emt 0:01:14]} 13. Nxd5 {[%emt 0:00:08]} Qxd5 {[%emt 0:00:17]} 14. Bd3 {[%emt 0:02:03]} Be7 {[%emt 0:04:22]} 15. Be4 {[%emt 0:07:11]} Qxd2+ {[%emt 0:01:05]} 16. Rxd2 {[%emt 0:00:02]} Bxe4 {[%emt 0:00:47]} 17. fxe4 {[%emt 0:00:01]} h5 {[%emt 0:02:41]} 18. g5 {[%emt 0:00:39]} Rc8 {[%emt 0:04:33]} 19. Rhd1 {[%emt 0:30:04]} h4 {[%emt 0:06:57]} 20. Rd7 {[%emt 0:04:34]} Rh5 {[%emt 0:05:12]} 21. g6 {[%emt 0:00:41]} fxg6 {[%emt 0:01:20]} 22. Ra7 {[%emt 0:00:14]} g5 {[%emt 0:15:33]} 23. Rxa6 {[%emt 0:10:35]} g4 {[%emt 0:02:32]} 24. Rxe6 {[%emt 0:00:23]} Kf7 {[%emt 0:01:47]} 25. Rb6 {[%emt 0:08:04]} Rc4 {[%emt 0:08:42]} 26. Rf1+ {[%emt 0:02:39]} Kg8 {[%emt 0:03:23]} 27. Re6 {[%emt 0:00:12]} Bf6 {[%emt 0:03:38]} 28. b3 {[%emt 0:00:55]} Rc8 {[%emt 0:03:35]} 29. Rg1 {[%emt 0:02:06]} Bg5 {[%emt 0:04:24]} 30. Bxg5 {[%emt 0:01:25]} Rxg5 {[%emt 0:00:01]} 31. Rd6 {[%emt 0:00:24]} Rc3 {[%emt 0:00:54]} 32. Rd5 {[%emt 0:03:15]} Rg6 {[%emt 0:00:42]} 33. Rxb5 {[%emt 0:02:37]} g3 {[%emt 0:00:13]} 34. hxg3 {[%emt 0:01:53]} Rcxg3 {[%emt 0:00:14]} 35. Rh1 {[%emt 0:03:27]} Rg1+ {[%emt 0:00:30]} 36. Rxg1 {[%emt 0:00:01]} Rxg1+ {[%emt 0:00:08]} 37. Kb2 {[%emt 0:02:29]} g5 {[%emt 0:00:43]} 38. a4 {[%emt 0:00:30]} h3 {[%emt 0:00:00]} 39. Rb8+ {[%emt 0:00:47]} Kg7 {[%emt 0:00:07]} 40. Rb7+ {[%emt 0:00:26]} Kg6 {[%emt 0:01:19]} 41. Rb6+ {[%emt 0:03:36]} Kh7 {[%emt 0:02:10]} 42. Rb7+ {[%emt 0:00:17]} Kg6 {[%emt 0:01:06]} 43. Rb6+ {[%emt 0:00:06]} Kh7 {[%emt 0:00:14]} 44. Rb7+ {[%emt 0:00:05]} Kh8 {[%emt 0:00:20]} 45. Rb8+ {[%emt 0:01:22]} Kg7 {[%emt 0:00:06]} 46. Rb7+ {[%emt 0:00:20]} Kg8 {[%emt 0:00:12]} 47. Rb8+ {[%emt 0:00:14]} Kh7 {[%emt 0:00:27]} 1/2-1/2

[Event "DLM Youth 2024"]
[Site "Tuebingen"]
[Date "2024.10.03"]
[Round "1"]
[White "Heinrich, John"]
[Black "Abou Wally, Adrian"]
[Result "1-0"]
[ECO "D78"]
[WhiteElo "2237"]
[BlackElo "1991"]
[Annotator "RC"]
[PlyCount "71"]
[EventDate "2024.10.03"]
[EventType "team-swiss"]
[EventRounds "7"]
[EventCountry "GER"]
[SourceTitle "playchess.com"]
[Source "ChessBase"]
[SourceQuality "1"]
[TimeControl "40/5400+30:1800+30"]

1. Nf3 {[%emt 0:00:12]} Nf6 {[%emt 0:00:09]} 2. c4 {[%emt 0:00:09]} g6 {[%emt 0:00:11]} 3. d4 {[%emt 0:00:18]} Bg7 {[%emt 0:00:22]} 4. g3 {[%emt 0:00:07]} O-O {[%emt 0:00:24]} 5. Bg2 {[%emt 0:00:13]} c6 {[%emt 0:02:07]} 6. Nc3 {[%emt 0:00:19]} d5 {[%emt 0:00:47]} 7. Qb3 {[%emt 0:00:07]} dxc4 {[%emt 0:04:13]} 8. Qxc4 {[%emt 0:00:06]} Nbd7 {[%emt 0:01:28]} 9. O-O {[%emt 0:00:35]} Nb6 {[%emt 0:04:24]} 10. Qd3 {[%emt 0:00:25]} h6 {[%emt 0:05:53]} 11. Rd1 {[%emt 0:01:21]} Be6 {[%emt 0:06:48]} 12. e4 {[%emt 0:00:49]} Bg4 {[%emt 0:05:39]} 13. h3 {[%emt 0:03:14]} Bxf3 {[%emt 0:00:08]} 14. Qxf3 {[%emt 0:00:36]} e6 {[%emt 0:00:48]} 15. Qe2 {[%emt 0:02:34]} Qe7 {[%emt 0:02:55]} 16. Be3 {[%emt 0:01:36]} Rfd8 {[%emt 0:02:15]} 17. a4 {[%emt 0:00:40]} Qb4 {[%emt 0:07:43]} 18. a5 {[%emt 0:01:04]} Nbd7 {[%emt 0:03:02]} 19. d5 {[%emt 0:10:50]} exd5 {[%emt 0:05:11]} 20. exd5 {[%emt 0:02:07]} cxd5 {[%emt 0:03:22]} 21. Nxd5 {[%emt 0:04:08]} Nxd5 {[%emt 0:01:28]} 22. Rxd5 {[%emt 0:00:35]} Ne5 {[%emt 0:04:10]} 23. Bc5 {[%emt 0:02:46]} Qb3 {[%emt 0:15:52]} 24. Rxe5 {[%emt 0:00:17]} Bxe5 {[%emt 0:00:07]} 25. Qxe5 {[%emt 0:00:04]} Re8 {[%emt 0:01:21]} 26. Qc3 {[%emt 0:00:59]} Qxc3 {[%emt 0:03:04]} 27. bxc3 {[%emt 0:00:04]} Rac8 {[%emt 0:01:28]} 28. Bxa7 {[%emt 0:00:37]} Re7 {[%emt 0:02:28]} 29. Rb1 {[%emt 0:01:25]} Rcc7 {[%emt 0:04:16]} 30. Bd4 {[%emt 0:00:06]} g5 {[%emt 0:01:01]} 31. h4 {[%emt 0:00:50]} g4 {[%emt 0:02:39]} 32. h5 {[%emt 0:00:05]} Kf8 {[%emt 0:02:27]} 33. Bd5 {[%emt 0:00:38]} Red7 {[%emt 0:02:01]} 34. c4 {[%emt 0:00:07]} Re7 {[%emt 0:01:14]} 35. Kf1 {[%emt 0:00:09]} Red7 {[%emt 0:00:35]} 36. Rb6 {[%emt 0:00:09]} 1-0

[Event "DLM Youth 2024"]
[Site "Tuebingen"]
[Date "2024.10.03"]
[Round "1"]
[White "Semling, Julius"]
[Black "Foksha, Mischa"]
[Result "1-0"]
[ECO "B90"]
[WhiteElo "2233"]
[BlackElo "2078"]
[Annotator "RC"]
[PlyCount "101"]
[EventDate "2024.10.03"]
[EventType "team-swiss"]
[EventRounds "7"]
[EventCountry "GER"]
[SourceTitle "playchess.com"]
[Source "ChessBase"]
[SourceQuality "1"]
[TimeControl "40/5400+30:1800+30"]

1. e4 {[%emt 0:00:02]} c5 {[%emt 0:00:05]} 2. Nf3 {[%emt 0:00:08]} d6 {[%emt 0:00:06]} 3. d4 {[%emt 0:00:08]} cxd4 {[%emt 0:00:05]} 4. Nxd4 {[%emt 0:00:07]} Nf6 {[%emt 0:00:07]} 5. Nc3 {[%emt 0:00:09]} a6 {[%emt 0:00:04]} 6. h3 {[%emt 0:00:23]} e5 {[%emt 0:00:40]} 7. Nf3 {[%emt 0:00:35]} b5 {[%emt 0:03:56]} 8. a4 {[%emt 0:01:12]} Bb7 {[%emt 0:08:04]} 9. axb5 {[%emt 0:07:30]} Nxe4 {[%emt 0:00:47]} 10. Nxe4 {[%emt 0:05:01]} Bxe4 {[%emt 0:00:06]} 11. bxa6 {[%emt 0:10:09]} Qb6 {[%emt 0:10:19]} 12. c3 {[%emt 0:13:08]} Be7 {[%emt 0:25:11]} 13. Nd2 {[%emt 0:08:17]} Bb7 {[%emt 0:06:34]} 14. Nc4 {[%emt 0:08:59]} Qc6 {[%emt 0:02:14]} 15. Na5 {[%emt 0:05:05]} Qe4+ {[%emt 0:00:20]} 16. Be3 {[%emt 0:01:13]} Bxa6 {[%emt 0:02:27]} 17. Ra4 {[%emt 0:04:02]} Qg6 {[%emt 0:00:28]} 18. Rg4 {[%emt 0:09:41]} Qf5 {[%emt 0:03:06]} 19. Nc4 {[%emt 0:04:51]} O-O {[%emt 0:07:20]} 20. Bh6 {[%emt 0:04:43]} Bf6 {[%emt 0:01:25]} 21. Ne3 {[%emt 0:01:55]} Qe6 {[%emt 0:00:43]} 22. Nd5 {[%emt 0:01:21]} Kh8 {[%emt 0:01:23]} 23. Bxa6 {[%emt 0:03:39]} Nxa6 {[%emt 0:01:12]} 24. Nxf6 {[%emt 0:00:30]} gxh6 {[%emt 0:00:30]} 25. Qf3 {[%emt 0:01:54]} Nc5 {[%emt 0:08:56]} 26. O-O {[%emt 0:05:54]} Ra7 {[%emt 0:04:00]} 27. Rh4 {[%emt 0:02:11]} Nd7 {[%emt 0:00:39]} 28. Rxh6 {[%emt 0:00:00]} Nxf6 {[%emt 0:00:06]} 29. Rxf6 {[%emt 0:00:00]} Qe7 {[%emt 0:01:39]} 30. Rd1 Rd8 {[%emt 0:00:43]} 31. Qf5 {[%emt 0:00:00]} Kg7 {[%emt 0:01:16]} 32. Qg5+ {[%emt 0:00:00]} Kh8 {[%emt 0:00:30]} 33. Rd3 {[%emt 0:00:23]} Rg8 {[%emt 0:01:57]} 34. Qf5 {[%emt 0:00:40]} Rd7 {[%emt 0:00:09]} 35. Rh6 {[%emt 0:01:07]} Rg6 {[%emt 0:00:12]} 36. Qh5 {[%emt 0:01:02]} Rxh6 {[%emt 0:00:56]} 37. Qxh6 {[%emt 0:01:16]} d5 {[%emt 0:02:39]} 38. Rg3 {[%emt 0:00:00]} f6 {[%emt 0:01:13]} 39. Rf3 {[%emt 0:00:55]} Rd6 {[%emt 0:00:00]} 40. Qe3 {[%emt 0:01:25]} d4 {[%emt 0:04:49]} 41. cxd4 {[%emt 0:06:06]} Rxd4 {[%emt 0:00:27]} 42. Qc3 {[%emt 0:00:52]} Rd8 {[%emt 0:11:29]} 43. b4 {[%emt 0:04:05]} Rb8 {[%emt 0:01:57]} 44. b5 {[%emt 0:03:22]} h6 {[%emt 0:02:12]} 45. Qc6 {[%emt 0:01:45]} Kh7 {[%emt 0:00:52]} 46. Rg3 {[%emt 0:07:28]} Qf7 {[%emt 0:05:15]} 47. b6 {[%emt 0:02:04]} f5 {[%emt 0:00:43]} 48. Qe4 {[%emt 0:01:33]} Rxb6 {[%emt 0:00:30]} 49. Qxe5 {[%emt 0:00:25]} Rf6 {[%emt 0:01:41]} 50. Rf3 {[%emt 0:02:04]} f4 {[%emt 0:00:08]} 51. g4 {[%emt 0:00:24]} 1-0